[Event "Late-Titled-Tuesday-Blitz-March-05-2024"]
[Site "Chess.com"]
[Date "2024.03.05"]
[Round "2"]
[White "OPQRC"]
[Black "FMJoseHerrera"]
[Result "1-0"]
[WhiteElo "2558"]
[BlackElo "2769"]
[TimeControl "180+1"]
[EndTime "14:19:49 PST"]
[Termination "OPQRC won by resignation"]

1. e4 {[%clk 0:03:00.9]} 1... c5 {[%clk 0:03:00]} 2. Nf3 {[%clk 0:03:00.1]} 2...
e6 {[%clk 0:03:00.7]} 3. b3 {[%clk 0:02:59.7]} 3... b6 {[%clk 0:03:00.8]} 4. Bb2
{[%clk 0:02:58]} 4... Bb7 {[%clk 0:03:01.4]} 5. Bd3 {[%clk 0:02:57.3]} 5... Qc7
{[%clk 0:03:01.7]} 6. O-O {[%clk 0:02:57]} 6... a6 {[%clk 0:03:02.2]} 7. Re1
{[%clk 0:02:57.1]} 7... d6 {[%clk 0:03:02.8]} 8. c4 {[%clk 0:02:52.6]} 8... Nd7
{[%clk 0:03:03]} 9. Bc2 {[%clk 0:02:50.9]} 9... Ngf6 {[%clk 0:03:03.7]} 10. d4
{[%clk 0:02:44.5]} 10... cxd4 {[%clk 0:03:04.6]} 11. Nxd4 {[%clk 0:02:43.4]}
11... Be7 {[%clk 0:03:04.9]} 12. Qf3 {[%clk 0:02:38.1]} 12... h5 {[%clk
0:03:03.6]} 13. Nd2 {[%clk 0:02:29.7]} 13... h4 {[%clk 0:03:03.5]} 14. Qh3
{[%clk 0:02:23.6]} 14... g5 {[%clk 0:03:00]} 15. Nxe6 {[%clk 0:02:02.4]} 15...
fxe6 {[%clk 0:02:59.7]} 16. Qxe6 {[%clk 0:02:03.3]} 16... Nc5 {[%clk 0:02:58.1]}
17. Qf5 {[%clk 0:02:00]} 17... Rf8 {[%clk 0:02:28.6]} 18. Rad1 {[%clk
0:01:43.4]} 18... Rf7 {[%clk 0:01:39.4]} 19. Qg6 {[%clk 0:01:25.9]} 19... Ncd7
{[%clk 0:01:31]} 20. Nf3 {[%clk 0:01:16.9]} 20... Nf8 {[%clk 0:01:30.9]} 21. Qh6
{[%clk 0:00:55.7]} 21... O-O-O {[%clk 0:01:25.2]} 22. Nxg5 {[%clk 0:00:51.2]}
22... Ng8 {[%clk 0:01:21.1]} 23. Qxh4 {[%clk 0:00:34.2]} 23... Kb8 {[%clk
0:01:17.6]} 24. Qh5 {[%clk 0:00:26.6]} 24... Bxg5 {[%clk 0:01:09.6]} 25. Qxg5
{[%clk 0:00:27.5]} 25... Ne6 {[%clk 0:01:08.6]} 26. Qg3 {[%clk 0:00:24.2]} 26...
Rdf8 {[%clk 0:01:06.5]} 27. f3 {[%clk 0:00:23.1]} 27... Ne7 {[%clk 0:01:03.9]}
28. Qxd6 {[%clk 0:00:22.8]} 28... Ng6 {[%clk 0:00:56.9]} 29. Qxe6 {[%clk
0:00:17.4]} 29... Nf4 {[%clk 0:00:57.1]} 30. Qe5 {[%clk 0:00:15.4]} 30... Re7
{[%clk 0:00:20.9]} 31. Qxc7+ {[%clk 0:00:14.3]} 31... Kxc7 {[%clk 0:00:21.8]}
32. Ba3 {[%clk 0:00:12.7]} 32... Rg8 {[%clk 0:00:22.3]} 33. g3 {[%clk
0:00:09.3]} 33... Rf7 {[%clk 0:00:21.6]} 34. Kf2 {[%clk 0:00:07.7]} 34... Nh3+
{[%clk 0:00:19]} 35. Ke3 {[%clk 0:00:08]} 35... Ng5 {[%clk 0:00:19.9]} 36. f4
{[%clk 0:00:07.2]} 36... Ne6 {[%clk 0:00:20.3]} 37. e5 {[%clk 0:00:07.2]} 37...
Rh8 {[%clk 0:00:18.6]} 38. Bd6+ {[%clk 0:00:07.4]} 38... Kc8 {[%clk 0:00:18.3]}
39. Rd2 {[%clk 0:00:07.3]} 39... Nd8 {[%clk 0:00:13.8]} 40. Be4 {[%clk
0:00:07.5]} 40... Nc6 {[%clk 0:00:11.1]} 41. Bxc6 {[%clk 0:00:07.6]} 41... Bxc6
{[%clk 0:00:11]} 42. h4 {[%clk 0:00:07]} 42... Rg8 {[%clk 0:00:10.7]} 43. Rg1
{[%clk 0:00:07.2]} 43... Rfg7 {[%clk 0:00:11.2]} 44. f5 {[%clk 0:00:05.6]} 44...
Rg4 {[%clk 0:00:10.4]} 45. e6 {[%clk 0:00:04.7]} 45... Re4+ {[%clk 0:00:11.3]}
46. Kd3 {[%clk 0:00:04.4]} 46... Kd8 {[%clk 0:00:11]} 47. Kc3 {[%clk 0:00:04.9]}
47... Ke8 {[%clk 0:00:09.9]} 48. Rd4 {[%clk 0:00:04]} 48... Re2 {[%clk
0:00:08.5]} 49. Rd3 {[%clk 0:00:04.3]} 49... Be4 {[%clk 0:00:07.6]} 50. Rd2
{[%clk 0:00:03.8]} 50... Rxd2 {[%clk 0:00:06.2]} 51. Kxd2 {[%clk 0:00:03.9]}
51... Bxf5 {[%clk 0:00:07.1]} 52. Ke3 {[%clk 0:00:03.7]} 52... Bxe6 {[%clk
0:00:07.5]} 53. Bf4 {[%clk 0:00:04.2]} 53... Kd7 {[%clk 0:00:08.4]} 54. Kd4
{[%clk 0:00:04.7]} 54... Bg4 {[%clk 0:00:08.8]} 55. Ke5 {[%clk 0:00:05.1]} 55...
Kc6 {[%clk 0:00:09.1]} 56. Kf6 {[%clk 0:00:05.5]} 56... Rf8+ {[%clk 0:00:09.7]}
57. Kg5 {[%clk 0:00:05.4]} 57... Rg8+ {[%clk 0:00:10.1]} 58. Kf6 {[%clk
0:00:06]} 58... Kc5 {[%clk 0:00:10.2]} 59. Kf7 {[%clk 0:00:05.5]} 59... Rc8
{[%clk 0:00:10]} 60. Rh1 {[%clk 0:00:05.9]} 60... Bh5+ {[%clk 0:00:09.4]} 61.
Kf6 {[%clk 0:00:05.5]} 61... Kb4 {[%clk 0:00:10.3]} 62. Kg5 {[%clk 0:00:06]}
62... Bf3 {[%clk 0:00:10.3]} 63. Rh2 {[%clk 0:00:05.6]} 63... Rg8+ {[%clk
0:00:11.2]} 64. Kf6 {[%clk 0:00:05.7]} 64... Bh5 {[%clk 0:00:11.4]} 65. Kf5
{[%clk 0:00:04.5]} 65... a5 {[%clk 0:00:11.6]} 66. Bg5 {[%clk 0:00:04.5]} 66...
Rf8+ {[%clk 0:00:11.4]} 67. Ke6 {[%clk 0:00:04.3]} 67... Rf3 {[%clk 0:00:10.3]}
68. Bf4 {[%clk 0:00:03.8]} 68... Ka3 {[%clk 0:00:10.8]} 69. Kf6 {[%clk
0:00:04.1]} 69... Rf1 {[%clk 0:00:09.9]} 70. Kg5 {[%clk 0:00:04.2]} 70... Bf3
{[%clk 0:00:09]} 71. h5 {[%clk 0:00:04.8]} 71... Re1 {[%clk 0:00:09.5]} 72. h6
{[%clk 0:00:05.2]} 72... Re8 {[%clk 0:00:10.4]} 73. h7 {[%clk 0:00:05.4]} 73...
Rh8 {[%clk 0:00:03]} 74. Be5 {[%clk 0:00:05.9]} 74... Rxh7 {[%clk 0:00:03.6]}
75. Rxh7 {[%clk 0:00:06.1]} 75... Kxa2 {[%clk 0:00:04.5]} 76. Bc7 {[%clk
0:00:05.8]} 76... Kxb3 {[%clk 0:00:04]} 77. Bxb6 {[%clk 0:00:06.2]} 77... a4
{[%clk 0:00:04.9]} 78. Bd4 {[%clk 0:00:05.7]} 78... Kxc4 {[%clk 0:00:04]} 79.
Bg7 {[%clk 0:00:05.6]} 79... a3 {[%clk 0:00:03.4]} 80. Rh2 {[%clk 0:00:05.9]}
80... Kb3 {[%clk 0:00:03.2]} 81. Kf4 {[%clk 0:00:06.2]} 81... Bd1 {[%clk
0:00:02.7]} 82. g4 {[%clk 0:00:06.5]} 82... Bxg4 {[%clk 0:00:03]} 83. Kxg4
{[%clk 0:00:06.1]} 83... a2 {[%clk 0:00:03.8]} 84. Kf4 {[%clk 0:00:06]} 84...
Ka3 {[%clk 0:00:03.3]} 85. Ba1 {[%clk 0:00:06.4]} 85... Kb3 {[%clk 0:00:04.2]}
86. Ke3 {[%clk 0:00:06.7]} 86... Kc4 {[%clk 0:00:03.8]} 87. Rxa2 {[%clk
0:00:06.8]} 87... Kb4 {[%clk 0:00:04.5]} 88. Rb2+ {[%clk 0:00:07.2]} 1-0

[Event "Late-Titled-Tuesday-Blitz-March-05-2024"]
[Site "Chess.com"]
[Date "2024.03.05"]
[Round "2"]
[White "Kombinator01"]
[Black "nindjaxx8"]
[Result "1-0"]
[WhiteElo "2497"]
[BlackElo "2696"]
[TimeControl "180+1"]
[EndTime "14:19:57 PST"]
[Termination "Kombinator01 won on time"]

1. d4 {[%clk 0:03:00.9]} 1... d5 {[%clk 0:02:57]} 2. Bf4 {[%clk 0:03:00.9]} 2...
Nf6 {[%clk 0:02:56.5]} 3. e3 {[%clk 0:03:01.2]} 3... Bf5 {[%clk 0:02:52.4]} 4.
c4 {[%clk 0:02:56.2]} 4... e6 {[%clk 0:02:47.7]} 5. Nc3 {[%clk 0:02:56.4]} 5...
Be7 {[%clk 0:02:47.4]} 6. Nf3 {[%clk 0:02:51.3]} 6... O-O {[%clk 0:02:47.3]} 7.
Be2 {[%clk 0:02:44.6]} 7... c5 {[%clk 0:02:42.5]} 8. O-O {[%clk 0:02:43]} 8...
Nc6 {[%clk 0:02:36.9]} 9. Rc1 {[%clk 0:02:41.8]} 9... dxc4 {[%clk 0:02:35.3]}
10. dxc5 {[%clk 0:02:34.7]} 10... Bd3 {[%clk 0:02:10.2]} 11. Bxd3 {[%clk
0:02:20.1]} 11... cxd3 {[%clk 0:02:07.3]} 12. Na4 {[%clk 0:02:09.4]} 12... Qa5
{[%clk 0:00:55.6]} 13. b3 {[%clk 0:02:09.7]} 13... Rfd8 {[%clk 0:00:53.9]} 14.
Qd2 {[%clk 0:02:05.9]} 14... Qa6 {[%clk 0:00:53.5]} 15. Rcd1 {[%clk 0:01:51]}
15... Ne4 {[%clk 0:00:51.7]} 16. Qc1 {[%clk 0:01:50]} 16... Bf6 {[%clk
0:00:46.3]} 17. Nd2 {[%clk 0:01:49.7]} 17... Nxd2 {[%clk 0:00:24.5]} 18. Rxd2
{[%clk 0:01:49.7]} 18... Rac8 {[%clk 0:00:25.3]} 19. Rfd1 {[%clk 0:01:48.6]}
19... b5 {[%clk 0:00:25.1]} 20. Nc3 {[%clk 0:01:41.2]} 20... Bxc3 {[%clk
0:00:14.9]} 21. Qxc3 {[%clk 0:01:40.9]} 21... b4 {[%clk 0:00:15.8]} 22. Qb2
{[%clk 0:01:34.2]} 22... Rd7 {[%clk 0:00:15.2]} 23. Bd6 {[%clk 0:01:34]} 23...
Rcd8 {[%clk 0:00:10.3]} 24. Rxd3 {[%clk 0:01:33.8]} 24... Ne7 {[%clk 0:00:10.6]}
25. Qd2 {[%clk 0:01:23.8]} 25... Nf5 {[%clk 0:00:09.9]} 26. Qxb4 {[%clk
0:01:16.6]} 26... Qxa2 {[%clk 0:00:07]} 27. g3 {[%clk 0:01:12.6]} 27... Qe2
{[%clk 0:00:05.5]} 28. Qf4 {[%clk 0:00:59.9]} 28... h6 {[%clk 0:00:04.9]} 29. h4
{[%clk 0:00:57.9]} 29... Rb7 {[%clk 0:00:03.4]} 30. e4 {[%clk 0:00:52.2]} 30...
Rxb3 {[%clk 0:00:03.5]} 31. R3d2 {[%clk 0:00:47.6]} 31... Qh5 {[%clk 0:00:02.5]}
32. exf5 {[%clk 0:00:47.3]} 32... Rf3 {[%clk 0:00:03.2]} 33. Qe4 {[%clk
0:00:41.5]} 33... exf5 {[%clk 0:00:03.4]} 34. Qe7 {[%clk 0:00:41.5]} 34... Ra8
{[%clk 0:00:02.6]} 35. Be5 {[%clk 0:00:41.7]} 35... f6 {[%clk 0:00:02.3]} 36.
Rd8+ {[%clk 0:00:41.3]} 36... Rxd8 {[%clk 0:00:02]} 37. Rxd8+ {[%clk 0:00:42.2]}
37... Kh7 {[%clk 0:00:02.8]} 38. Qe8 {[%clk 0:00:42.1]} 38... Qxe8 {[%clk
0:00:02.7]} 39. Rxe8 {[%clk 0:00:42.2]} 39... fxe5 {[%clk 0:00:03.6]} 40. Rxe5
{[%clk 0:00:42.2]} 40... a5 {[%clk 0:00:03.9]} 41. c6 {[%clk 0:00:38.9]} 41...
Rc3 {[%clk 0:00:04.4]} 42. Rxf5 {[%clk 0:00:39.4]} 42... Rxc6 {[%clk 0:00:05.1]}
43. Rxa5 {[%clk 0:00:40.1]} 43... Rc1+ {[%clk 0:00:04.9]} 44. Kg2 {[%clk
0:00:40.6]} 44... Rc2 {[%clk 0:00:05.8]} 45. Re5 {[%clk 0:00:40.3]} 45... Kg8
{[%clk 0:00:06.4]} 46. h5 {[%clk 0:00:40.5]} 46... Kf7 {[%clk 0:00:07]} 47. g4
{[%clk 0:00:40.2]} 47... Kf6 {[%clk 0:00:07.2]} 48. Rf5+ {[%clk 0:00:40.3]}
48... Ke6 {[%clk 0:00:07.9]} 49. Kg3 {[%clk 0:00:38.7]} 49... Rc3+ {[%clk
0:00:08.2]} 50. f3 {[%clk 0:00:38.4]} 50... Rc1 {[%clk 0:00:08.4]} 51. Rf8
{[%clk 0:00:38.4]} 51... Rg1+ {[%clk 0:00:08]} 52. Kf4 {[%clk 0:00:38.6]} 52...
Ra1 {[%clk 0:00:08.9]} 53. Re8+ {[%clk 0:00:38.5]} 53... Kf7 {[%clk 0:00:08.8]}
54. Rb8 {[%clk 0:00:38.7]} 54... Kf6 {[%clk 0:00:09.2]} 55. Rb6+ {[%clk
0:00:38]} 55... Kf7 {[%clk 0:00:09.8]} 56. Rb7+ {[%clk 0:00:38.5]} 56... Kf6
{[%clk 0:00:10]} 57. Kg3 {[%clk 0:00:39.2]} 57... Rg1+ {[%clk 0:00:09.3]} 58.
Kf2 {[%clk 0:00:38.8]} 58... Ra1 {[%clk 0:00:09.7]} 59. Kg3 {[%clk 0:00:37.2]}
59... Rg1+ {[%clk 0:00:09.1]} 60. Kh2 {[%clk 0:00:37.8]} 60... Ra1 {[%clk
0:00:09]} 61. f4 {[%clk 0:00:37.6]} 61... Ra3 {[%clk 0:00:06.9]} 62. Kg2 {[%clk
0:00:37.5]} 62... Rc3 {[%clk 0:00:05.9]} 63. Rb6+ {[%clk 0:00:36.8]} 63... Kf7
{[%clk 0:00:06.3]} 64. Rb7+ {[%clk 0:00:37.2]} 64... Kf6 {[%clk 0:00:06.6]} 65.
Rb6+ {[%clk 0:00:37.5]} 65... Kf7 {[%clk 0:00:06.8]} 66. Kf2 {[%clk 0:00:35.2]}
66... Rh3 {[%clk 0:00:06.1]} 67. Ra6 {[%clk 0:00:33.8]} 67... Rc3 {[%clk
0:00:05.6]} 68. Ra4 {[%clk 0:00:31.5]} 68... Rb3 {[%clk 0:00:05.9]} 69. Re4
{[%clk 0:00:32]} 69... Ra3 {[%clk 0:00:05.4]} 70. Re3 {[%clk 0:00:32.6]} 70...
Ra4 {[%clk 0:00:06]} 71. Kf3 {[%clk 0:00:33]} 71... Ra1 {[%clk 0:00:06.8]} 72.
Ke4 {[%clk 0:00:32.7]} 72... Ra4+ {[%clk 0:00:06.8]} 73. Kf5 {[%clk 0:00:33]}
73... Ra5+ {[%clk 0:00:07.1]} 74. Re5 {[%clk 0:00:33.4]} 74... Ra1 {[%clk
0:00:06.1]} 75. Rb5 {[%clk 0:00:33.3]} 75... Ra7 {[%clk 0:00:05.6]} 76. Rc5
{[%clk 0:00:33.2]} 76... Rd7 {[%clk 0:00:04.9]} 77. Rb5 {[%clk 0:00:31.7]} 77...
Ra7 {[%clk 0:00:05]} 78. Rd5 {[%clk 0:00:32.3]} 78... Rc7 {[%clk 0:00:05.1]} 79.
Ke5 {[%clk 0:00:32.6]} 79... Re7+ {[%clk 0:00:05.1]} 80. Kd4 {[%clk 0:00:30.6]}
80... Ra7 {[%clk 0:00:05.3]} 81. Rf5+ {[%clk 0:00:29.7]} 81... Ke6 {[%clk
0:00:05.2]} 82. Re5+ {[%clk 0:00:30.2]} 82... Kf7 {[%clk 0:00:04.9]} 83. Rb5
{[%clk 0:00:30.3]} 83... Ra4+ {[%clk 0:00:04]} 84. Ke5 {[%clk 0:00:30.6]} 84...
Ra7 {[%clk 0:00:04.9]} 85. g5 {[%clk 0:00:29.8]} 85... hxg5 {[%clk 0:00:04.3]}
86. fxg5 {[%clk 0:00:30.7]} 86... Re7+ {[%clk 0:00:04.5]} 87. Kf5 {[%clk
0:00:31.1]} 87... Rc7 {[%clk 0:00:04.6]} 88. g6+ {[%clk 0:00:30.9]} 88... Ke7
{[%clk 0:00:05.2]} 89. Re5+ {[%clk 0:00:31.1]} 89... Kd7 {[%clk 0:00:04.9]} 90.
Kg5 {[%clk 0:00:30.4]} 90... Rc1 {[%clk 0:00:04.7]} 91. Re4 {[%clk 0:00:29.6]}
91... Rg1+ {[%clk 0:00:04.6]} 92. Rg4 {[%clk 0:00:30]} 92... Rh1 {[%clk
0:00:05.3]} 93. Rh4 {[%clk 0:00:28.6]} 93... Rg1+ {[%clk 0:00:05.3]} 94. Kf5
{[%clk 0:00:29.2]} 94... Rh1 {[%clk 0:00:06]} 95. Rxh1 {[%clk 0:00:29]} 1-0

[Event "Late-Titled-Tuesday-Blitz-March-05-2024"]
[Site "Chess.com"]
[Date "2024.03.05"]
[Round "2"]
[White "ChessFanNM"]
[Black "Sinquefield"]
[Result "1-0"]
[WhiteElo "2288"]
[BlackElo "2486"]
[TimeControl "180+1"]
[EndTime "14:20:39 PST"]
[Termination "ChessFanNM won by checkmate"]

1. e4 {[%clk 0:02:59.3]} 1... d6 {[%clk 0:03:00.9]} 2. d4 {[%clk 0:02:59]} 2...
Nf6 {[%clk 0:03:01.5]} 3. Nc3 {[%clk 0:02:59.1]} 3... Nbd7 {[%clk 0:03:02.1]} 4.
g3 {[%clk 0:02:59.2]} 4... e5 {[%clk 0:03:02.5]} 5. Nge2 {[%clk 0:02:58.7]} 5...
Be7 {[%clk 0:03:03.1]} 6. Bg2 {[%clk 0:02:58.6]} 6... O-O {[%clk 0:03:03.5]} 7.
O-O {[%clk 0:02:58.6]} 7... c6 {[%clk 0:03:04.1]} 8. a4 {[%clk 0:02:58]} 8... a5
{[%clk 0:03:01.1]} 9. h3 {[%clk 0:02:56.6]} 9... Re8 {[%clk 0:03:00.9]} 10. Be3
{[%clk 0:02:55.9]} 10... Bf8 {[%clk 0:03:00.6]} 11. Qd2 {[%clk 0:02:54.6]} 11...
Qc7 {[%clk 0:02:59.3]} 12. g4 {[%clk 0:02:54.3]} 12... Nb6 {[%clk 0:02:47.4]}
13. b3 {[%clk 0:02:53.2]} 13... g6 {[%clk 0:02:39.9]} 14. Ng3 {[%clk 0:02:52]}
14... Bg7 {[%clk 0:02:39.9]} 15. Rad1 {[%clk 0:02:51.3]} 15... Nbd7 {[%clk
0:02:35.4]} 16. Bh6 {[%clk 0:02:34.1]} 16... Nf8 {[%clk 0:02:34.9]} 17. Bxg7
{[%clk 0:02:33.3]} 17... Kxg7 {[%clk 0:02:35.8]} 18. Nf5+ {[%clk 0:02:20.4]}
18... Bxf5 {[%clk 0:02:34.5]} 19. exf5 {[%clk 0:02:18.4]} 19... d5 {[%clk
0:02:29.7]} 20. dxe5 {[%clk 0:02:12.8]} 20... Qxe5 {[%clk 0:02:30.6]} 21. Rfe1
{[%clk 0:02:11.3]} 21... Qc7 {[%clk 0:02:28.9]} 22. Qd4 {[%clk 0:01:57.1]} 22...
h6 {[%clk 0:02:23.7]} 23. h4 {[%clk 0:01:44.1]} 23... g5 {[%clk 0:02:23.6]} 24.
Qd2 {[%clk 0:01:29.1]} 24... N8h7 {[%clk 0:02:12.3]} 25. hxg5 {[%clk 0:01:21.8]}
25... hxg5 {[%clk 0:02:09.4]} 26. Bf3 {[%clk 0:01:17.4]} 26... Rxe1+ {[%clk
0:02:06.4]} 27. Rxe1 {[%clk 0:01:01.6]} 27... Re8 {[%clk 0:02:07.3]} 28. Rxe8
{[%clk 0:00:58.7]} 28... Nxe8 {[%clk 0:02:08.2]} 29. Qd4+ {[%clk 0:00:59]} 29...
Nhf6 {[%clk 0:01:55.8]} 30. Ne2 {[%clk 0:00:58.3]} 30... Qe7 {[%clk 0:01:51.5]}
31. Ng3 {[%clk 0:00:56.6]} 31... Kh7 {[%clk 0:01:21.4]} 32. Qd2 {[%clk
0:00:46.2]} 32... Kh6 {[%clk 0:01:19.9]} 33. Kg2 {[%clk 0:00:44.9]} 33... Qb4
{[%clk 0:01:12.1]} 34. Qe3 {[%clk 0:00:26.7]} 34... Qf4 {[%clk 0:00:54.1]} 35.
Qe7 {[%clk 0:00:18.9]} 35... Kg7 {[%clk 0:00:53.7]} 36. Qxb7 {[%clk 0:00:15.7]}
36... Qd6 {[%clk 0:00:48.4]} 37. Qb6 {[%clk 0:00:13.7]} 37... Qc7 {[%clk
0:00:46.5]} 38. Qd4 {[%clk 0:00:13.6]} 38... Kf8 {[%clk 0:00:45.9]} 39. Nh5
{[%clk 0:00:12.3]} 39... Qe7 {[%clk 0:00:32.8]} 40. Nxf6 {[%clk 0:00:11.6]}
40... Nxf6 {[%clk 0:00:33.7]} 41. Kg3 {[%clk 0:00:10.6]} 41... Nd7 {[%clk
0:00:33.4]} 42. Qd2 {[%clk 0:00:10.3]} 42... Ne5 {[%clk 0:00:21.3]} 43. Qd4
{[%clk 0:00:09.9]} 43... f6 {[%clk 0:00:19.5]} 44. Kg2 {[%clk 0:00:09.7]} 44...
Kg7 {[%clk 0:00:18.8]} 45. Qb6 {[%clk 0:00:09.5]} 45... Nxf3 {[%clk 0:00:18.2]}
46. Kxf3 {[%clk 0:00:09.5]} 46... Qe4+ {[%clk 0:00:18.6]} 47. Kg3 {[%clk
0:00:09.9]} 47... Qf4+ {[%clk 0:00:19.3]} 48. Kh3 {[%clk 0:00:09.9]} 48... Qf3+
{[%clk 0:00:18.5]} 49. Kh2 {[%clk 0:00:10.1]} 49... Qf4+ {[%clk 0:00:17.4]} 50.
Kh3 {[%clk 0:00:09.9]} 50... Qf3+ {[%clk 0:00:17.9]} 51. Kh2 {[%clk 0:00:10.1]}
51... Qxg4 {[%clk 0:00:18.4]} 52. Qc7+ {[%clk 0:00:09.5]} 52... Kh6 {[%clk
0:00:17.4]} 53. Qxc6 {[%clk 0:00:09]} 53... Qxf5 {[%clk 0:00:14.8]} 54. Kg2
{[%clk 0:00:09]} 54... Qg4+ {[%clk 0:00:12.8]} 55. Kh2 {[%clk 0:00:09]} 55...
Qf4+ {[%clk 0:00:11.7]} 56. Kg2 {[%clk 0:00:09.2]} 56... Kh5 {[%clk 0:00:12.6]}
57. Qc8 {[%clk 0:00:08.9]} 57... Qe4+ {[%clk 0:00:10.4]} 58. Kh2 {[%clk
0:00:08.7]} 58... Qe5+ {[%clk 0:00:09.5]} 59. Kg2 {[%clk 0:00:08.9]} 59... g4
{[%clk 0:00:08.9]} 60. Qh8+ {[%clk 0:00:08.7]} 60... Kg5 {[%clk 0:00:09.2]} 61.
Qg7+ {[%clk 0:00:08.7]} 61... Kf4 {[%clk 0:00:08.9]} 62. Qh6+ {[%clk 0:00:08]}
62... Kf5 {[%clk 0:00:08.1]} 63. Qh5+ {[%clk 0:00:07.5]} 63... Kf4 {[%clk
0:00:08.6]} 64. Qxe5+ {[%clk 0:00:06.3]} 64... fxe5 {[%clk 0:00:07.3]} 65. b4
{[%clk 0:00:06.4]} 65... axb4 {[%clk 0:00:06.8]} 66. a5 {[%clk 0:00:06.7]} 66...
d4 {[%clk 0:00:07.4]} 67. a6 {[%clk 0:00:06.8]} 67... d3 {[%clk 0:00:08]} 68.
cxd3 {[%clk 0:00:06.9]} 68... b3 {[%clk 0:00:08.6]} 69. a7 {[%clk 0:00:07.4]}
69... b2 {[%clk 0:00:09.5]} 70. a8=Q {[%clk 0:00:07.1]} 70... b1=Q {[%clk
0:00:10.1]} 71. Qe4+ {[%clk 0:00:07]} 71... Kg5 {[%clk 0:00:10.4]} 72. Qxe5+
{[%clk 0:00:07.2]} 72... Kg6 {[%clk 0:00:10.6]} 73. Qe6+ {[%clk 0:00:07.1]}
73... Kg5 {[%clk 0:00:10.9]} 74. Qe3+ {[%clk 0:00:07.3]} 74... Kf5 {[%clk
0:00:11]} 75. Qe4+ {[%clk 0:00:07.6]} 75... Kg5 {[%clk 0:00:11.5]} 76. Qe3+
{[%clk 0:00:07.9]} 76... Kf5 {[%clk 0:00:11.3]} 77. d4 {[%clk 0:00:08.2]} 77...
Qb7+ {[%clk 0:00:10.8]} 78. Kg3 {[%clk 0:00:08.6]} 78... Qc7+ {[%clk 0:00:11.2]}
79. Qe5+ {[%clk 0:00:08.3]} 79... Qxe5+ {[%clk 0:00:11.2]} 80. dxe5 {[%clk
0:00:08.9]} 80... Kxe5 {[%clk 0:00:10.3]} 81. Kxg4 {[%clk 0:00:09.3]} 81... Kf6
{[%clk 0:00:09.8]} 82. Kf4 {[%clk 0:00:09.6]} 82... Ke6 {[%clk 0:00:10.5]} 83.
Kg5 {[%clk 0:00:10]} 83... Kf7 {[%clk 0:00:10.7]} 84. Kf5 {[%clk 0:00:10.2]}
84... Kg7 {[%clk 0:00:11.5]} 85. Ke6 {[%clk 0:00:09.3]} 85... Kg6 {[%clk
0:00:12.1]} 86. f4 {[%clk 0:00:07.5]} 86... Kg7 {[%clk 0:00:12.7]} 87. Ke5
{[%clk 0:00:05.4]} 87... Kf7 {[%clk 0:00:11.8]} 88. Kf5 {[%clk 0:00:05.6]} 88...
Ke7 {[%clk 0:00:12.2]} 89. Kg6 {[%clk 0:00:05.8]} 89... Kf8 {[%clk 0:00:12]} 90.
Kf6 {[%clk 0:00:05.9]} 90... Ke8 {[%clk 0:00:12.5]} 91. f5 {[%clk 0:00:03.6]}
91... Kf8 {[%clk 0:00:13.4]} 92. Ke6 {[%clk 0:00:04]} 92... Ke8 {[%clk
0:00:13.8]} 93. f6 {[%clk 0:00:04.5]} 93... Kf8 {[%clk 0:00:14.4]} 94. f7 {[%clk
0:00:05.1]} 94... Kg7 {[%clk 0:00:14.9]} 95. Ke7 {[%clk 0:00:06]} 95... Kg6
{[%clk 0:00:15.8]} 96. f8=Q {[%clk 0:00:05.8]} 96... Kg5 {[%clk 0:00:16.2]} 97.
Qf6+ {[%clk 0:00:06.7]} 97... Kg4 {[%clk 0:00:16.9]} 98. Qe6+ {[%clk 0:00:07.3]}
98... Kg3 {[%clk 0:00:17.8]} 99. Kd6 {[%clk 0:00:08]} 99... Kf3 {[%clk
0:00:18.2]} 100. Kd5 {[%clk 0:00:08.9]} 100... Kf4 {[%clk 0:00:18.3]} 101. Kc5
{[%clk 0:00:09.8]} 101... Kf3 {[%clk 0:00:19.2]} 102. Qc4 {[%clk 0:00:10]}
102... Ke3 {[%clk 0:00:19.5]} 103. Qd4+ {[%clk 0:00:10.8]} 103... Ke2 {[%clk
0:00:19.7]} 104. Kc4 {[%clk 0:00:10.9]} 104... Kf3 {[%clk 0:00:19.8]} 105. Kd5
{[%clk 0:00:10.7]} 105... Ke2 {[%clk 0:00:20.7]} 106. Qf4 {[%clk 0:00:10.4]}
106... Kd3 {[%clk 0:00:20.3]} 107. Qf3+ {[%clk 0:00:10.8]} 107... Kc2 {[%clk
0:00:20.1]} 108. Kc4 {[%clk 0:00:09.8]} 108... Kb2 {[%clk 0:00:21]} 109. Qd3
{[%clk 0:00:09.7]} 109... Ka1 {[%clk 0:00:21.5]} 110. Qd2 {[%clk 0:00:09.9]}
110... Kb1 {[%clk 0:00:21.5]} 111. Kb3 {[%clk 0:00:10.8]} 111... Ka1 {[%clk
0:00:22.4]} 112. Qb2# {[%clk 0:00:11.4]} 1-0

[Event "Late-Titled-Tuesday-Blitz-March-05-2024"]
[Site "Chess.com"]
[Date "2024.03.05"]
[Round "3"]
[White "Elsa167"]
[Black "Casper"]
[Result "1-0"]
[WhiteElo "2892"]
[BlackElo "2519"]
[TimeControl "180+1"]
[EndTime "14:22:16 PST"]
[Termination "Elsa167 won by resignation"]

1. d4 {[%clk 0:03:00.6]} 1... g6 {[%clk 0:03:00.9]} 2. e4 {[%clk 0:02:59.5]}
2... Bg7 {[%clk 0:03:01.6]} 3. c4 {[%clk 0:03:00.2]} 3... d6 {[%clk 0:03:02.5]}
4. Nc3 {[%clk 0:03:00.7]} 4... Nc6 {[%clk 0:03:03.1]} 5. Nge2 {[%clk 0:03:00.8]}
5... Nf6 {[%clk 0:03:02.4]} 6. f3 {[%clk 0:02:59.5]} 6... O-O {[%clk 0:03:02.8]}
7. Be3 {[%clk 0:03:00]} 7... e5 {[%clk 0:03:02.2]} 8. d5 {[%clk 0:02:59.4]} 8...
Ne7 {[%clk 0:03:02.9]} 9. Qd2 {[%clk 0:02:59.7]} 9... Nh5 {[%clk 0:03:02.9]} 10.
g4 {[%clk 0:02:57.4]} 10... Nf6 {[%clk 0:03:01.3]} 11. Ng3 {[%clk 0:02:55.4]}
11... h5 {[%clk 0:03:00.5]} 12. gxh5 {[%clk 0:02:54.8]} 12... gxh5 {[%clk
0:03:01.4]} 13. Bg5 {[%clk 0:02:44.7]} 13... Ng6 {[%clk 0:03:00.8]} 14. Nxh5
{[%clk 0:02:44.6]} 14... c6 {[%clk 0:02:55.8]} 15. O-O-O {[%clk 0:02:38.3]}
15... Nxh5 {[%clk 0:02:53.7]} 16. Bxd8 {[%clk 0:02:38.1]} 16... Rxd8 {[%clk
0:02:54.6]} 17. Qg5 {[%clk 0:02:34.3]} 17... Nhf4 {[%clk 0:02:53.1]} 18. Qxd8+
{[%clk 0:02:34]} 1-0

[Event "Late-Titled-Tuesday-Blitz-March-05-2024"]
[Site "Chess.com"]
[Date "2024.03.05"]
[Round "3"]
[White "Jarming"]
[Black "Shtembuliak"]
[Result "0-1"]
[WhiteElo "2644"]
[BlackElo "2849"]
[TimeControl "180+1"]
[EndTime "14:23:18 PST"]
[Termination "Shtembuliak won by resignation"]

1. c4 {[%clk 0:02:59.8]} 1... g6 {[%clk 0:02:58.9]} 2. g3 {[%clk 0:03:00.2]}
2... Bg7 {[%clk 0:02:59.1]} 3. Bg2 {[%clk 0:03:01.1]} 3... d6 {[%clk 0:02:59.5]}
4. Nc3 {[%clk 0:03:00.5]} 4... Nf6 {[%clk 0:02:58.7]} 5. d3 {[%clk 0:02:59.7]}
5... c6 {[%clk 0:02:55]} 6. Rb1 {[%clk 0:02:57.7]} 6... a5 {[%clk 0:02:50]} 7.
a3 {[%clk 0:02:57.5]} 7... d5 {[%clk 0:02:42]} 8. cxd5 {[%clk 0:02:54.6]} 8...
cxd5 {[%clk 0:02:42.4]} 9. Nf3 {[%clk 0:02:52.4]} 9... Nc6 {[%clk 0:02:41.5]}
10. O-O {[%clk 0:02:48.3]} 10... d4 {[%clk 0:02:41.9]} 11. Nb5 {[%clk
0:02:47.9]} 11... a4 {[%clk 0:02:38.1]} 12. Bd2 {[%clk 0:02:47.7]} 12... Qb6
{[%clk 0:02:28.4]} 13. Nbxd4 {[%clk 0:02:13.9]} 13... Nxd4 {[%clk 0:02:27.4]}
14. Be3 {[%clk 0:02:11.2]} 14... Nxf3+ {[%clk 0:02:27]} 15. Bxf3 {[%clk
0:02:12.1]} 15... Qd8 {[%clk 0:02:25.3]} 16. Rc1 {[%clk 0:02:11.5]} 16... O-O
{[%clk 0:02:24.6]} 0-1